Cogmind - Beta 14 @@@ ROGUE MODE // 2024.10.16 @ 23:17:34 Player: Gilgameshx13 Result: Destroyed by as-84172 with Assembled Blade Performance ------------- Evolutions (1) 500 Regions Visited (3) 600 Robots Destroyed (19) 95 Value Destroyed (508) 508 Prototype IDs (0) 0 Alien Tech Used (0) 0 Bonus (0) 0 TOTAL SCORE: 1703 Bonus ------- None Cogmind --------- Core Integrity 0/400 Matter 272/300 Energy 76/100 System Corruption 16% Temperature Cool (0) Movement Walking (190) Ox1 Location -9/Mines Parts ------- > --- POWER (2) -------- (None) > --- PROPULSION (2) --- Aluminum Leg > --- UTILITY (3) ------ (None) > --- WEAPON (2) ------- Assault Rifle Bore Cannon > --- INVENTORY (5) ---- Aluminum Leg Aluminum Leg Small Storage Unit Medium Storage Unit Peak State ------------ > --- POWER ------------ Ion Engine Reinforced Ion Engine > --- PROPULSION ------- Aluminum Leg Aluminum Leg > --- UTILITY ---------- Heat Sink Large Storage Unit Light Armor Plating > --- WEAPON ----------- Particle Gun Beam Cannon > --- INVENTORY -------- Light Treads Light Treads Aluminum Leg Improved Aluminum Leg Small Storage Unit Medium Storage Unit Terrain Scanner Medium Laser Assault Rifle Assault Rifle [Rating: 12] Favorites ----------- Power Ion Engine Engine Ion Engine Propulsion Aluminum Leg Treads Light Treads Leg Aluminum Leg Utility Light Armor Plating Device Heat Sink Storage Large Storage Unit Protection Light Armor Plating Weapon Assault Rifle Energy Gun Particle Gun Energy Cannon Beam Cannon Ballistic Gun Assault Rifle Ballistic Cannon Bore Cannon Build | -11 -10 -9 -9 ------- Run | Yrd Mat Mat Min Slots Evolved 2 | . . 2 . Power 1 | . . 1 . Propulsion . | . . . . Utility 1 | . . 1 . Weapon . | . . . . Parts Attached 32 | 6 9 11 6 Power 5 | 2 1 2 . Engine 5 | 2 1 2 . Core . | . . . . Reactor . | . . . . Propulsion 10 | 1 3 5 1 Treads 2 | . . 2 . Leg 8 | 1 3 3 1 Wheel . | . . . . Hover . | . . . . Flight . | . . . . Utility 8 | 1 3 2 2 Device 3 | . . 1 2 Storage 3 | 1 2 . . Processor . | . . . . Hackware . | . . . . Protection 2 | . 1 1 . Artifact . | . . . . Weapon 9 | 2 2 2 3 Energy Gun 1 | . . 1 . Energy Cannon 2 | . 1 1 . Ballistic Gun 5 | 2 1 . 2 Ballistic Cannon 1 | . . . 1 Launcher . | . . . . Special Weapon . | . . . . Impact Weapon . | . . . . Slashing Weapon . | . . . . Piercing Weapon . | . . . . Special Melee Weapon . | . . . . Unidentified Prototypes . | . . . . Parts Lost 16 | . . 4 12 Power 2 | . . . 2 Propulsion 4 | . . 2 2 Utility 6 | . . 1 5 Weapon 4 | . . 1 3 Highest Loss Streak 12 | . . 4 12 To Critical Strikes . | . . . . Average Slot Usage (%) 84 | . 89 81 80 Engine 15 | . 13 16 14 Treads 4 | . . 4 17 Leg 15 | . 21 14 2 Device 3 | . . 5 11 Storage 11 | . 14 11 8 Protection 9 | . 11 9 7 Energy Gun 3 | . . 5 7 Energy Cannon 8 | . 2 11 6 Ballistic Gun 10 | . 23 3 3 Peak Build Rating 12 | 5 9 12 12 Average Rating 8 | 4 7 10 10 On Entrance 6 | . 5 9 12 Naked Turns . | . . . . Heaviest Build 45 | 14 33 45 45 Greatest Support 40 | 10 26 40 40 Greatest Overweight (x) 9 | 3 2 9 1 Average Overweight (x) 1 | 1 . 1 . Largest Inventory Capacity 15 | 8 15 15 15 Average Capacity 12 | 7 10 15 13 Most Carried 15 | 5 10 15 13 Average Carried 10 | 3 7 12 11 Final Capacity 15 | 8 15 15 5 Final Carried 13 | 5 9 13 4 Class Distribution -------------------- 67% | Mutant 32% | Scavenger-Mutant Dominant Class ---------------- Mutant | -10/Materials Scavenger-Mutant | -9/Materials Scavenger-Mutant | -9/Mines Resources | -11 -10 -9 -9 ----------- Run | Yrd Mat Mat Min Matter Collected 591 | 227 . 352 12 Remotely . | . . . . Salvage Created 684 | . 21 638 25 Parts 51 | . 2 49 . Haulers Intercepted . | . . . . Recyclers Shooed . | . . . . Parts Field Recycled . | . . . . Retrieved Matter . | . . . . Parts Self-Destructed . | . . . . Prevented . | . . . . Kills | -11 -10 -9 -9 ------- Run | Yrd Mat Mat Min Combat Hostiles Destroyed 17 | . . 15 2 Guns 5 | . . 3 2 Cannons 12 | . . 12 . Classes Destroyed 9 | . 1 7 1 Worker 1 | . . 1 . Builder 1 | . . 1 . Mechanic 1 | . . 1 . Watcher 1 | . 1 . . Swarmer 3 | . . 3 . Grunt 9 | . . 9 . Brawler 2 | . . 2 . Sentry 1 | . . 1 . Assembled 2 | . . . 2 Best Kill Streak 11 | . 1 11 2 Combat Bots Only 8 | . . 8 2 Max Kills in Single Turn 2 | . 1 2 1 Gunslinging . | . . . . Exploded . | . . . . Melee . | . . . . Uniques/NPCs Destroyed . | . . . . Combat | -11 -10 -9 -9 -------- Run | Yrd Mat Mat Min Hostile Shots Fired 160 | . . 86 74 Missed 44 | . . 26 18 Damage Taken 1758 | . . 763 995 Core 412 | . . 207 205 Absorbed by Shields . | . . . . Core Remaining (%) 100 | 100 100 . . Volleys Fired 63 | . 9 43 11 Largest 2 | . 2 2 2 Hottest 125 | . 80 125 125 Shots Fired 118 | . 17 82 19 Gun 60 | . 15 30 15 Cannon 58 | . 2 52 4 Launcher . | . . . . Special . | . . . . Kinetic 43 | . 15 19 9 Thermal 75 | . 2 63 10 Explosive . | . . . . Electromagnetic . | . . . . Robot Hit Streak 8 | . 3 8 3 Robot Miss Streak 7 | . 5 7 3 Penetration Max . | . . . . Secondary Targets 1 | . . . 1 Max Gunslinging Chain 1 | . . . 1 Shots Hit Robots 62 | . 9 43 10 Core Hits 29 | . 2 23 4 Critical Kills . | . . . . Critical Parts Destroyed . | . . . . Critical Strikes 1 | . . 1 . Burn 1 | . . 1 . Melee Attacks . | . . . . Impact . | . . . . Slashing . | . . . . Piercing . | . . . . Sneak Attacks . | . . . . Combat Hostiles . | . . . . Follow-up Attacks . | . . . . Damage Inflicted 1080 | . 115 826 139 Guns 451 | . 98 249 104 Cannons 629 | . 17 577 35 Explosions . | . . . . Melee . | . . . . Ramming . | . . . . Kinetic 252 | . 98 108 46 Thermal 828 | . 17 718 93 Explosive . | . . . . Electromagnetic . | . . . . Impact . | . . . . Slashing . | . . . . Piercing . | . . . . Highest Corruption 16 | . . . 16 Average Corruption 12 | . . . 12 Corruption Purged . | . . . . Corruption Blocked . | . . . . Effects 2 | . . . 2 Message Errors 1 | . . . 1 Weapon Failures 1 | . . . 1 Overload Shots . | . . . . Overflow Damage 12 | . 12 . . Projectiles 12 | . 12 . . Explosions . | . . . . Melee . | . . . . Knockbacks . | . . . . Impact . | . . . . Kinetic . | . . . . Secondary . | . . . . Self-Inflicted Damage . | . . . . Shots . | . . . . Rammed . | . . . . Targets Rammed . | . . . . Kicked . | . . . . Crushed . | . . . . Highest Temperature 778 | . 54 778 264 Average Temperature 274 | . 28 303 160 Received Heat Transfer 461 | . . 321 140 Effects 38 | . . 38 . Shutdowns 7 | . . 7 . Energy Bleed 7 | . . 7 . Interference 1 | . . 1 . Matter Decay 2 | . . 2 . Short Circuit 3 | . . 3 . Damage (minor) 2 | . . 2 . Damage (major) 14 | . . 14 . Damage (core) 2 | . . 2 . Siege Activations . | . . . . Robots Corrupted . | . . . . Combat Hostiles . | . . . . Parts Fried . | . . . . Impact Corruptions . | . . . . Robots Melted . | . . . . Combat Hostiles . | . . . . Parts Melted 3 | . . 3 . Heat Transferred 1887 | . 37 1628 222 Parts Sabotaged . | . . . . Parts Stolen . | . . . . Parts Stripped . | . . . . Power Chain Reactions . | . . . . Alert | -11 -10 -9 -9 ------- Run | Yrd Mat Mat Min Peak Influence 241 | . 22 241 79 Initial 64 | . . 9 64 Average 73 | . 7 128 49 Maximum Alert Level 1 | . . 1 . Low Security (%) 86 | 100 100 74 100 Level 1 13 | . . 25 . Level 2 . | . . . . Level 3 . | . . . . Level 4 . | . . . . Level 5 . | . . . . High Security . | . . . . Max Security . | . . . . Squads Dispatched 2 | . . 2 . Investigation . | . . . . Extermination . | . . . . Reinforcement 2 | . . 2 . Assault . | . . . . Garrison . | . . . . Intercept . | . . . . Searches Triggered . | . . . . Construction Impeded 1 | . . 1 . Haulers Reinforced . | . . . . Active Scanning Responses . | . . . . Cargo Convoy Interrupts . | . . . . Stealth | -11 -10 -9 -9 --------- Run | Yrd Mat Mat Min Distress Signals 2 | . . 2 . Communications Jammed . | . . . . Distress Signals . | . . . . Times Spotted 47 | . 6 20 21 Peak Tracking Total 19 | . 2 4 19 Tactical Retreats 4 | . . 1 3 Traps | -11 -10 -9 -9 ------- Run | Yrd Mat Mat Min Traps Triggered 2 | . 2 . . Indirectly . | . . . . Trap Hack Attempts . | . . . . Triggered . | . . . . Disarmed . | . . . . Reprogrammed . | . . . . Reused . | . . . . Traps Extracted . | . . . . Installed . | . . . . Triggered . | . . . . Machines | -11 -10 -9 -9 ---------- Run | Yrd Mat Mat Min Machines Disabled 2 | . . 1 1 Max in Single Turn 1 | . . 1 1 Machines Repaired . | . . . . Machines Dismantled . | . . . . Machines Sabotaged . | . . . . Overloaded Fab Kills . | . . . . Hacking | -11 -10 -9 -9 --------- Run | Yrd Mat Mat Min Machines Accessed . | . . . . Terminals . | . . . . Fabricators . | . . . . Repair Stations . | . . . . Recycling Units . | . . . . Scanalyzers . | . . . . Garrison Access . | . . . . Total Hacks . | . . . . Successful . | . . . . Failed . | . . . . Catastrophic . | . . . . Database Lockouts . | . . . . Manual . | . . . . Terminals . | . . . . Fabricators . | . . . . Repair Stations . | . . . . Recycling Units . | . . . . Scanalyzers . | . . . . Garrison Access . | . . . . Terminal Hacks . | . . . . Fabricator Hacks . | . . . . Repair Station Hacks . | . . . . Recycling Unit Hacks . | . . . . Scanalyzer . | . . . . Garrison Access Hacks . | . . . . Unauthorized Hacks . | . . . . Terminals . | . . . . Fabricators . | . . . . Repair Stations . | . . . . Recycling Units . | . . . . Scanalyzers . | . . . . Garrison Access . | . . . . Data Cores Recovered . | . . . . Used . | . . . . Hacking Detections . | . . . . Full Trace Events . | . . . . Feedback Events . | . . . . Feedback Blocked . | . . . . Robot Schematics Acquired . | . . . . Robots Built . | . . . . Authchips . | . . . . Time . | . . . . Total Robot Build Rating . | . . . . Part Schematics Acquired . | . . . . Parts Built . | . . . . Authchips . | . . . . Time . | . . . . Total Part Build Rating . | . . . . Parts Repaired . | . . . . Time . | . . . . Parts Recycled . | . . . . Recycled Matter . | . . . . Retrieved Matter . | . . . . Retrieved Components . | . . . . Parts Scanalyzed . | . . . . Part Schematics Acquired . | . . . . Parts Damaged . | . . . . Bothacking | -11 -10 -9 -9 ------------ Run | Yrd Mat Mat Min Used RIF Installer . | . . . . Robots Hacked . | . . . . Non-combat . | . . . . Combat . | . . . . Robot Hacks Applied . | . . . . Relay Couplers Released . | . . . . Fabnet Peak Effective % . | . . . . Robots Rewired . | . . . . Allies Hacked . | . . . . Hacks Repelled . | . . . . Allies | -11 -10 -9 -9 -------- Run | Yrd Mat Mat Min Total Allies . | . . . . Largest Group . | . . . . Highest-Rated Group . | . . . . Highest-Rated Ally . | . . . . Total Orders . | . . . . Ally Attacks . | . . . . Total Damage . | . . . . Kills . | . . . . Allies Corrupted . | . . . . Allies Melted . | . . . . Intel | -11 -10 -9 -9 ------- Run | Yrd Mat Mat Min Robot Analysis Total . | . . . . Derelict Logs Recovered . | . . . . Drone Launches . | . . . . Drone Recoveries . | . . . . Exploration | -11 -10 -9 -9 ------------- Run | Yrd Mat Mat Min Turns Passed 1209 | 112 381 631 85 Spaces Moved 474 | 55 194 203 22 Core 23 | 12 . 11 . Treads 77 | . . 59 18 Legs 374 | 43 194 133 4 Wheels . | . . . . Hover . | . . . . Flight . | . . . . Fastest Speed 50 | 50 120 190 120 Average Speed 202 | 175 172 236 218 Slowest Speed 500 | 200 260 500 240 Overloaded Moves . | . . . . Propulsion Burnouts . | . . . . Robots Hopped . | . . . . Cave-ins Triggered . | . . . . Exploration Rate (%) 17 | 5 32 27 5 Regions Visited 3 Branch Regions 1 Pre-discovered Areas . | . . . . Known Exits Taken . | . . . . Unknown Exits Taken 3 | 1 1 1 . Scrap Searched . | . . . . Spaces Dug . | . . . . Terrain Destroyed . | . . . . Melee . | . . . . Projectile . | . . . . AOE . | . . . . Terrain Rammed . | . . . . Walls Destroyed . | . . . . Machines Disabled . | . . . . Actions | -11 -10 -9 -9 --------- Run | Yrd Mat Mat Min Total 608 | 70 222 276 40 Wait . | . . . . Move 471 | 54 193 202 22 Hop . | . . . . Pick Up 37 | 10 11 15 1 Fast Attach . | . . . . Attach 26 | 5 7 8 6 Detach . | . . . . Swap 6 | 1 2 3 . Drop 5 | . . 5 . Fire 63 | . 9 43 11 Melee . | . . . . Ram . | . . . . Kick . | . . . . Crush . | . . . . Escape Stasis . | . . . . Rewire . | . . . . Trap . | . . . . Miscellaneous . | . . . . Route ------- -11/Scrapyard -10/Materials -9/Materials -9/Mines History --------- Turn | Location | Event 35 | -11/Scrapyard | Discovered new exit (range 16) 113 | -11/Scrapyard | Entered Materials 310 | -10/Materials | Build established: Mutant 448 | -10/Materials | Discovered new exit (range 13) 494 | -10/Materials | Entered another Materials area 494 | -9/Materials | Evolved 2 slots: Power x1, Utility x1 762 | -9/Materials | Core integrity fell below 50% 774 | -9/Materials | Destroyed 8 combat bots 781 | -9/Materials | Lost 4 parts (2n1u1w) 1098 | -9/Materials | Build established: Scavenger-Mutant 1099 | -9/Materials | Discovered new exit (range 7) 1125 | -9/Materials | Entered Mines 1141 | -9/Mines | Assembled infested the area 1146 | -9/Mines | Assisted by a Guerilla fighting off Assembled 1187 | -9/Mines | System corruption reached 10% 1206 | -9/Mines | Core integrity fell below 20% 1210 | -9/Mines | Destroyed by as-84172 with Assembled Blade Last Messages --------------- Ion Engine destroyed. as-06309 destroyed. Lgt. Armor Plating destroyed. Rnf. Ion Engine destroyed. System corrupted by crushing effect (+4). as-93728 destroyed. Switching to secondary target: as-84172. Acquired 12 matter. 64WG#AT4F J8&LB3V=OYUGGF4JACDK3AGFYX%XJ Particle Gun destroyed. Lgt. Treads destroyed. System corrupted by crushing effect (+3). Lgt. Treads destroyed. Assault Rifle destroyed. Heat Sink destroyed. Lrg. Storage Unit destroyed. Acquired Bore Cannon. System corrupted: Bore Cannon jammed. Heat Sink destroyed. HV Slug penetrates Wall. Map ----- +----------------------------------------------------+ | ?????????????????????????????????????????????????? | | ?????????????????????????????????????????????????? | | ?????????????????????????????????????????????????? | | ?????????????????????????????????????????????????? | | ?????????????????????????????????????????????????? | | ?????????????????????????????????????????????????? | | ?????????????????????????????????????????????????? | | ?????????????????????????????????????????????????? | | ???????????????????????# ????????????????????????? | | ??????????????????????# ??????????????????????? | | ?????????????????????# ??????????????????????? | | ??????????????????? ???????????????????????? | | ??????????????????""" ???????????????????????? | | ??????????????????""" ????????????????????????? | | ???????????????????" *????????????????????????? | | ??????????????????? !?????????????????????????? | | ??????????????????? ?????????????????????????? | | ???????????????????# ??????????????????????????? | | ???????????????????#*%=??????????????????????????? | | ???????????????????# =#??????????????????????????? | | ???????????????????# #??????????????????????????? | | ???????????????????#%%#??????????????????????????? | | ???????????????????# !#??????????????????????????? | | ????????????????####=[##??###????????????????????? | | ????????????????# a! ###!;####;#???????????????? | | ????????????????# a a@%%%a% % #????????? | | ????????????????# ###########???????????????? | | ????????????????# #?????????????????????????? | | ????????????????# #?????????????????????????? | | ????????????????########?????????????????????????? | | ?????????????????????????????????????????????????? | | ?????????????????????????????????????????????????? | | ?????????????????????????????????????????????????? | | ?????????????????????????????????????????????????? | | ?????????????????????????????????????????????????? | | ?????????????????????????????????????????????????? | | ?????????????????????????????????????????????????? | | ?????????????????????????????????????????????????? | | ?????????????????????????????????????????????????? | | ?????????????????????????????????????????????????? | | ?????????????????????????????????????????????????? | | ?????????????????????????????????????????????????? | | ?????????????????????????????????????????????????? | | ?????????????????????????????????????????????????? | | ?????????????????????????????????????????????????? | | ?????????????????????????????????????????????????? | | ?????????????????????????????????????????????????? | | ?????????????????????????????????????????????????? | | ?????????????????????????????????????????????????? | | ?????????????????????????????????????????????????? | +----------------------------------------------------+ Best States ------------- Heat Dissipation 48 Energy Generation 17 Energy Capacity 415 Matter Stores 300 Matter Capacity 300 Sight Range 16 Terrain Scan Density 10 Armor Coverage 150 Evasion (%) 55 Recoil Reduction 2 Item Schematics ----------------- None Robot Schematics ------------------ None Fabricated ------------ Nothing Alien Tech Used ----------------- None Achievements -------------- None Challenges ------------ None Game ------ Seed TerrabombSapperRigger Manual? 0 Play Time 00:11:03 Cumulative 24.4 hours Start 2024.10.16 @ 23:06:22 End 2024.10.16 @ 23:17:34 Sessions 1 Manual Loads 0 Difficulty Rogue Special Mode None Game No. 67 Rogue 47 Adventurer 20 Explorer 0 Win Type - Total 1 Types 1/0/0/0/0/0/0/0/0 Lore% 12 Gallery% 37 Achievement% 31 Wizard Run 0 Options --------- Layout 1 ASCII 0 Keyboard 0 Movement Arrows Keybinds 0 Fullscreen 1 Font 36/Smallcaps Map View 55x43 Zoom Use 0% Tactical HUD 0 Map Filters NONE Filters NONE Steam 1 RUN: e04a0494-9bcd-47a9-8922-d693af170623